bitfinex/quotes_ETHUSD_20220113
["timestamp","ask_amount","ask_price","bid_price","bid_amount"]
[1642077363546,0.00113685,3356.9,3356.8,0.07031643]
[1642077363946,0.13142985,3356.8,3356.7,1.4896581]
[1642077364143,0.13142985,3356.8,3356.7,0.7448581]
[1642077364344,0.00113685,3356.9,3356.7,0.7448581]
[1642077364643,0.00113685,3356.9,3356.7,1.4896681]
[1642077365689,0.00113685,3356.9,3356.7,0.98990973]
[1642077366297,0.00113685,3356.9,3356.7,0.49016303]
[1642077366698,0.00113685,3356.9,3356.8,1.129676]
[1642077366895,0.00113685,3356.9,3356.8,0.88442166]
[1642077367295,0.00113685,3356.9,3356.7,1.23502113]
[1642077367496,0.25449236,3356.8,3356.6,3.39736234]
[1642077367898,0.00113685,3356.9,3356.6,3.39736234]
[1642077368397,0.00113685,3356.9,3356.6,2.89761564]
[1642077368840,0.00113685,3356.9,3356.7,0.74479]
[1642077369039,0.00113685,3356.9,3356.6,2.39786894]
[1642077369040,1.33557212,3356.8,3356.6,1.2349811]
[1642077369441,0.4997467,3356.7,3356.6,1.2349811]
[1642077369942,1.33557212,3356.8,3356.6,1.2349811]
[1642077370139,1.33557212,3356.8,3356.6,0.7352344]
[1642077370639,1.33557212,3356.8,3356.6,2.2248389]
[1642077370839,1.33557212,3356.8,3356.6,1.73462821]
[1642077371242,1.33557212,3356.8,3356.6,1.7250922]
[1642077371843,1.33557212,3356.8,3356.6,1.23488151]
[1642077372295,1.33557212,3356.8,3356.6,1.2253455]
[1642077372296,2.33557212,3356.8,3356.6,1.2253455]
[1642077372496,2.33557212,3356.8,3356.3,2.22540937]
[1642077372695,0.49029835,3356.6,3356.3,2.22540937]
[1642077372894,0.49029835,3356.6,3356.4,0.00170527]
[1642077373294,3.87567212,3356.8,3356.4,0.00170527]
[1642077373498,0.74498,3356.6,3356.4,0.00170527]
[1642077373696,0.49813051,3356.4,3356.3,0.7449737]
[1642077374099,0.00170527,3356.7,3356.3,0.7449737]
[1642077374499,0.00113685,3356.6,3356.3,0.7449737]
[1642077375300,0.74499,3356.5,3356.3,0.7449737]
[1642077375502,0.74499,3356.5,3356.3,0.24505492]
[1642077375902,0.25476626,3356.3,3356.0,3.8918]
[1642077376152,0.25476626,3356.3,3356.0,1.47816568]
[1642077376356,0.25476626,3356.3,3356.1,0.00170527]
[1642077376552,0.74499,3356.5,3356.1,0.00170527]
[1642077377152,0.74499,3356.5,3356.2,0.74495]
[1642077377553,0.74499,3356.5,3356.1,0.00170527]
[1642077377755,0.4997591,3356.2,3356.1,0.00170527]
[1642077378056,1.60556317,3356.2,3356.1,0.00170527]
[1642077378255,1.10580407,3356.2,3356.1,0.00170527]
[1642077378756,0.49805383,3356.1,3356.0,1.47816568]
[1642077379154,1.10580407,3356.2,3356.0,1.47816568]
[1642077379358,1.10580407,3356.2,3356.0,2.22315568]
[1642077379653,1.10580407,3356.2,3356.0,2.96812478]
[1642077380488,1.10580407,3356.2,3356.0,2.46828268]
[1642077380891,1.10580407,3356.2,3356.0,0.990117]
[1642077381093,1.10580407,3356.2,3356.0,0.49029582]
[1642077381694,1.10580407,3356.2,3356.0,2.62968001]
[1642077382093,1.10580407,3356.2,3356.0,2.21360943]
[1642077382595,1.10580407,3356.2,3356.1,1.47816568]
[1642077383193,1.10580407,3356.2,3356.1,1.39441508]
[1642077383837,1.10580407,3356.2,3356.1,0.9702973]
[1642077384236,1.10580407,3356.2,3356.1,3.53190746]
[1642077384839,0.74499,3356.5,3356.2,0.7449572]
[1642077385038,0.74499,3356.5,3356.2,0.65435157]
[1642077385238,0.00170527,3356.4,3356.2,0.65435157]
[1642077385639,0.00113685,3356.3,3356.2,0.24513602]
[1642077385837,1.41691272,3356.3,3356.2,0.24513602]
[1642077386043,2.52157855,3356.3,3356.1,0.9702973]
[1642077386244,2.52157855,3356.3,3355.9,2.21399234]
[1642077386245,7.2201435,3356.2,3355.9,2.21399234]
[1642077386442,7.2201435,3356.2,3355.8,2.21399234]
[1642077386443,0.40921555,3356.1,3355.8,2.21399234]
[1642077386843,0.40921555,3356.1,3355.9,0.00113685]
[1642077387045,3.8451,3356.0,3355.9,0.00113685]
[1642077387487,0.49871134,3355.9,3355.5,3.2741]
[1642077387685,0.49871134,3355.9,3355.4,0.74509]
[1642077387886,0.7451,3356.0,3355.6,0.00170527]
[1642077388087,0.74512,3355.9,3355.6,0.00170527]
[1642077388587,0.74512,3355.9,3355.4,0.00284211]
[1642077388988,0.74512,3355.9,3355.5,0.7451061]
[1642077389191,0.74512,3355.9,3355.5,0.24520228]
[1642077389790,0.29692787,3355.5,3355.3,1.95126902]
[1642077389990,0.29692787,3355.5,3355.3,1.95129902]
[1642077390191,0.29692787,3355.5,3355.4,0.00284211]
[1642077390390,1.41948408,3355.7,3355.4,0.00284211]
[1642077390593,1.41948408,3355.7,3355.3,0.74514]
[1642077390594,0.49710572,3355.4,3355.3,0.74514]
[1642077391239,0.00113685,3355.6,3355.3,0.74514]
[1642077391443,0.00113685,3355.6,3355.4,1.51775785]
[1642077392041,0.00113685,3355.6,3355.3,2.2353732]
[1642077392443,0.00113685,3355.6,3355.4,1.28824377]
[1642077392642,0.00113685,3355.6,3355.3,3.2353732]
[1642077392843,0.00113685,3355.6,3355.3,3.5353732]
[1642077393043,0.00113685,3355.6,3355.5,1.48143726]
[1642077393243,0.00113685,3355.6,3355.5,2.62048109]
[1642077393644,0.29920833,3355.6,3355.5,4.43335355]
[1642077393843,0.29920833,3355.6,3355.5,2.62048109]
[1642077394043,0.29920833,3355.6,3355.5,2.95880608]
[1642077394044,0.00113685,3355.6,3355.5,2.95880608]
[1642077394243,1.2165,3356.3,3355.7,1.24406528]
[1642077394444,0.745,3356.4,3355.8,0.74501]
[1642077394649,0.00341054,3356.2,3355.8,0.74501]
[1642077395098,0.00284211,3356.1,3355.9,0.7450048]
[1642077395500,0.00227369,3356.0,3355.9,1.19190888]
[1642077396101,0.00227369,3356.0,3355.9,8.79377929]
[1642077396499,0.00227369,3356.0,3355.9,3.79377929]
[1642077396699,0.00227369,3356.0,3355.9,3.49571226]
[1642077396900,0.00227369,3356.0,3355.9,4.97618393]
[1642077397199,0.00227369,3356.0,3355.9,5.44479555]
[1642077397401,0.00227369,3356.0,3355.9,6.18980035]
[1642077397599,0.00227369,3356.0,3355.9,5.9447929]
[1642077398002,0.00227369,3356.0,3355.9,4.46432123]
[1642077398200,0.00227369,3356.0,3355.9,4.20947772]
[1642077398638,0.00227369,3356.0,3355.9,3.96447026]
[1642077399239,0.00227369,3356.0,3355.9,3.70962675]
[1642077399441,0.00227369,3356.0,3355.9,5.18828689]
[1642077400240,0.00227369,3356.0,3355.9,1.98056975]
[1642077400439,0.00227369,3356.0,3355.9,1.7355623]
[1642077401043,0.00227369,3356.0,3355.9,1.23571133]
[1642077401244,0.00227369,3356.0,3355.9,5.27576459]
[1642077401645,0.00227369,3356.0,3355.9,4.77591362]
[1642077402291,0.00227369,3356.0,3355.9,5.28515091]
[1642077402494,0.00227369,3356.0,3355.9,6.03013091]
[1642077402696,0.00227369,3356.0,3355.9,5.76604745]
[1642077403299,0.00227369,3356.0,3355.9,5.53027994]
[1642077403499,0.00227369,3356.0,3355.9,7.32559382]
[1642077403699,0.00227369,3356.0,3355.9,7.06151036]
[1642077404101,0.00227369,3356.0,3355.9,5.26619648]
[1642077404301,0.00227369,3356.0,3355.9,6.52033377]
[1642077404901,0.00227369,3356.0,3355.9,6.25625031]
[1642077405103,0.00227369,3356.0,3355.9,8.0500454]
[1642077405504,0.00227369,3356.0,3355.9,7.81427789]
[1642077405903,0.00227369,3356.0,3355.9,6.80529443]
[1642077406149,0.00227369,3356.0,3355.9,5.3268126]
[1642077406351,0.00227369,3356.0,3355.9,3.53301751]
[1642077406749,0.00227369,3356.0,3355.9,5.83329295]
[1642077407349,0.00227369,3356.0,3355.9,5.56920949]
[1642077407853,0.2380412,3356.0,3355.9,7.04734194]
[1642077408053,0.2380412,3356.0,3355.9,7.34734194]
[1642077408249,0.00227369,3356.0,3355.9,7.34734194]
[1642077408450,0.00227369,3356.0,3355.9,7.64734194]
[1642077408852,0.00227369,3356.0,3355.9,6.16920949]
[1642077409150,0.00227369,3356.0,3355.9,5.86920949]
[1642077409789,1.72893502,3356.3,3356.0,1.48974]
[1642077409989,1.72893502,3356.3,3356.0,2.9794919]
[1642077410189,0.00113685,3356.2,3356.1,2.48973]
[1642077410589,0.00113685,3356.2,3356.1,1.0]
[1642077411194,0.00113685,3356.2,3356.1,3.56157143]
[1642077412192,0.00113685,3356.2,3356.1,2.47842614]
[1642077412997,0.00113685,3356.2,3356.1,3.56157143]
[1642077413849,0.00113685,3356.2,3356.1,5.03999757]
[1642077415050,0.00113685,3356.2,3356.1,6.73955058]
[1642077415250,0.00113685,3356.2,3356.1,8.54905284]
[1642077415450,0.00113685,3356.2,3356.1,6.73955058]
[1642077415653,0.00113685,3356.2,3356.1,5.33999757]
[1642077416051,0.00113685,3356.2,3356.1,5.03999757]
[1642077418295,0.45096814,3356.3,3356.1,5.03999757]
[1642077419293,1.51712574,3356.6,3356.1,5.03999757]
[1642077419494,1.51712574,3356.6,3356.2,4.05136913]
[1642077419695,0.00170527,3356.5,3356.2,4.05136913]
[1642077420097,0.00113684,3356.4,3356.2,4.05136913]
[1642077420694,0.49984239,3356.3,3356.2,4.05136913]
[1642077420898,0.49984239,3356.3,3356.2,0.7448977]
[1642077421147,0.49984239,3356.3,3356.2,1.7448977]
[1642077421647,0.49984239,3356.3,3356.2,3.22332384]
[1642077422849,0.49984239,3356.3,3356.2,1.7448977]
[1642077423251,0.49984239,3356.3,3356.2,1.0]
[1642077423655,0.44984239,3356.3,3356.1,1.47842614]
[1642077424251,0.00113684,3356.4,3356.1,1.47842614]
[1642077424452,0.00113684,3356.4,3356.2,0.7448806]
[1642077424653,0.00113684,3356.4,3356.2,1.0]
[1642077424895,0.00113684,3356.4,3356.1,2.22331614]
[1642077425095,0.00113684,3356.4,3356.1,1.47842614]
[1642077425595,0.4999087,3356.3,3356.1,1.47842614]
[1642077425998,0.4999087,3356.3,3356.0,1.47842614]
[1642077426198,0.00113684,3356.4,3356.0,1.47842614]
[1642077426599,0.00113684,3356.4,3356.0,0.97851744]
[1642077426999,0.00113684,3356.4,3355.8,2.21399234]
[1642077427201,0.49984352,3356.0,3355.9,0.745]
[1642077427401,0.49984352,3356.0,3355.9,0.74670528]
[1642077427801,0.49984352,3356.0,3355.9,0.00170528]
[1642077428302,0.49984352,3356.0,3355.7,0.7450143]
[1642077428303,0.00113684,3356.4,3355.8,0.0022737]
[1642077428552,2.05055352,3355.9,3355.8,0.0022737]
[1642077428939,1.55071,3355.9,3355.8,0.0022737]
[1642077429137,1.23952335,3355.9,3355.8,0.7473037]
[1642077429743,2.33361267,3355.9,3355.8,0.0022737]
[1642077429943,0.49756982,3355.8,3355.5,1.7450457]
[1642077430142,0.49756982,3355.8,3355.6,0.00113685]
[1642077430342,2.33361267,3355.9,3355.6,0.00113685]
[1642077430542,1.23952335,3355.9,3355.6,0.00113685]
[1642077430748,1.23952335,3355.9,3355.7,0.7450246]
[1642077430945,1.23952335,3355.9,3355.7,1.4900846]
[1642077431745,0.49995428,3355.8,3355.7,1.4900846]
[1642077433606,0.49995428,3355.8,3355.7,0.74506]
[1642077435207,0.49995428,3355.8,3355.7,0.7353]
[1642077435608,0.49995428,3355.8,3355.7,1.0353]
[1642077435807,0.49995428,3355.8,3355.7,0.7353]
[1642077436450,0.49995428,3355.8,3355.7,5.51077088]
[1642077436648,0.74505,3356.3,3355.7,5.51077088]
[1642077437047,1.46188842,3356.2,3355.7,5.51077088]
[1642077437251,2.0486284,3355.8,3355.7,5.51077088]
[1642077437648,2.0486284,3355.8,3355.7,4.77547088]
[1642077437947,1.54878488,3355.8,3355.7,4.77547088]
[1642077438347,1.54878488,3355.8,3355.7,4.27562736]
[1642077439151,1.54878488,3355.8,3355.7,3.77574659]
[1642077439892,1.54878488,3355.8,3355.7,3.41417511]
[1642077440292,1.54878488,3355.8,3355.7,3.27586582]
[1642077440692,1.54878488,3355.8,3355.7,2.91429434]
[1642077441099,1.54878488,3355.8,3355.7,2.77598505]
[1642077441802,1.54878488,3355.8,3355.7,2.41441357]
[1642077442399,1.54878488,3355.8,3355.7,1.91453281]
[1642077442800,1.54878488,3355.8,3355.6,0.74618415]
[1642077443001,0.20031001,3355.7,3355.6,0.74618415]
[1642077443400,1.54878488,3355.8,3355.6,0.74618415]
[1642077443852,1.54878488,3355.8,3355.6,0.24630338]
[1642077444252,0.25357739,3355.6,3355.5,1.3]
[1642077444655,1.76886306,3355.6,3355.5,1.3]
[1642077444855,1.50554667,3355.6,3355.5,1.3]
[1642077445255,1.54878488,3355.8,3355.5,1.3]
[1642077445858,1.54878488,3355.8,3355.6,0.7450019]
[1642077446256,1.17067852,3355.7,3355.6,0.24521013]
[1642077446855,0.25467064,3355.6,3355.5,1.0]
[1642077447059,0.25467064,3355.6,3355.4,5.9433884]
[1642077447295,1.17067852,3355.7,3355.4,2.2351233]
[1642077447896,1.17067852,3355.7,3355.4,1.4901033]
[1642077448197,1.54878488,3355.8,3355.3,3.7082651]
[1642077448597,0.49999078,3355.6,3355.4,0.00113684]
[1642077448797,0.49999078,3355.6,3355.4,1.00113684]
[1642077448998,1.54878488,3355.8,3355.4,1.00113684]
[1642077449201,1.44538123,3355.7,3355.4,1.00113684]
[1642077449499,1.44538123,3355.7,3355.4,0.50114606]
[1642077449703,1.44538123,3355.7,3355.1,5.3435802]
[1642077449704,0.00113684,3355.6,3355.2,2.9632051]
[1642077450303,0.00113684,3355.6,3355.3,0.7450829]
[1642077450501,0.00089428,3355.4,3355.3,0.7450829]
[1642077450901,0.00113684,3355.6,3355.3,0.7450829]
[1642077451454,0.00113684,3355.6,3355.3,1.7450829]
[1642077451751,0.49990011,3355.4,3355.3,1.7450829]
[1642077452151,0.49648959,3355.4,3355.3,1.7450829]
[1642077452552,0.00113684,3355.6,3355.3,1.7450829]
[1642077452955,0.00113684,3355.6,3355.4,0.01094777]
[1642077453155,0.00113684,3355.6,3355.4,0.74502]
[1642077454254,0.00113684,3355.6,3355.5,7.04144722]
[1642077454654,0.00113684,3355.6,3355.5,8.34144722]
[1642077457011,0.49976857,3356.3,3355.6,5.0]
[1642077457213,0.45296088,3356.7,3355.9,1.48976]
[1642077457410,1.46048161,3356.0,3355.9,1.48976]
[1642077457609,1.46048161,3356.0,3355.9,2.78976]
[1642077457811,1.46275531,3356.0,3355.9,2.78976]
[1642077458009,0.0022737,3356.0,3355.9,2.78976]
[1642077459048,1.43993959,3356.0,3355.9,2.78976]
[1642077459454,0.0022737,3356.0,3355.9,2.78976]
[1642077461253,0.0022737,3356.0,3355.9,2.04488]
[1642077462298,0.50204227,3356.0,3355.9,2.04488]
[1642077462802,0.50204227,3356.0,3355.9,4.60630479]
[1642077464208,0.50204227,3356.0,3355.9,4.59658579]
[1642077464407,0.50204227,3356.0,3355.9,3.85170579]
[1642077464806,0.50204227,3356.0,3355.9,3.56142479]
[1642077465006,0.50204227,3356.0,3355.9,2.56142479]
[1642077465207,0.0022737,3356.0,3355.9,3.56142479]
[1642077465409,0.0022737,3356.0,3355.9,2.56142479]
[1642077465608,0.0022737,3356.0,3355.9,3.56142479]
[1642077465807,0.0022737,3356.0,3355.9,2.56142479]
[1642077466247,2.01947032,3356.0,3355.9,2.56142479]
[1642077466647,2.01947032,3356.0,3355.9,2.06165622]
[1642077467247,2.01947032,3356.0,3355.9,1.5617531]
[1642077467647,0.0022737,3356.0,3355.9,1.5617531]
[1642077467851,1.87171983,3356.0,3355.9,1.26365941]
[1642077468248,1.87171983,3356.0,3355.9,1.061856]
[1642077468850,1.87171983,3356.0,3355.9,0.76377119]
[1642077469050,0.0022737,3356.0,3355.9,0.76377119]
[1642077469251,0.0022737,3356.0,3355.9,0.56196778]
[1642077469451,1.91170766,3356.0,3355.9,0.56196778]
[1642077469904,1.91170766,3356.0,3355.9,0.26388297]
[1642077470510,0.0022737,3356.0,3355.9,0.06207956]
[1642077470910,0.23600524,3355.9,3355.6,0.7450425]
[1642077471312,0.00113685,3355.8,3355.6,0.7450425]
[1642077471514,0.00113685,3355.8,3355.7,1.49912642]
[1642077471712,0.0022737,3356.0,3355.7,1.49912642]
[1642077471912,1.33603095,3356.1,3355.8,0.7450088]
[1642077472313,0.0022737,3356.0,3355.8,0.7450088]
[1642077472513,0.0022737,3356.0,3355.8,0.2451985]
[1642077472813,0.00170527,3355.9,3355.8,0.2451985]
[1642077473217,0.00170527,3355.9,3355.8,0.00911534]
[1642077473852,0.00170527,3355.9,3355.8,0.30911534]
[1642077474350,0.00170527,3355.9,3355.8,1.30911534]
[1642077475352,0.00170527,3355.9,3355.8,1.00911534]
[1642077475654,0.00170527,3355.9,3355.8,1.30911534]
[1642077477493,0.00170527,3355.9,3355.8,3.55570527]
[1642077477895,1.18866775,3356.2,3355.9,0.744967]
[1642077478300,0.00113685,3356.1,3355.9,0.744967]
[1642077478699,0.00113685,3356.1,3355.9,1.044967]
[1642077479101,0.00113685,3356.1,3356.0,1.49523215]
[1642077483758,0.00113685,3356.1,3356.0,1.79523215]
[1642077487903,0.00113685,3356.1,3356.0,1.49523215]
[1642077488104,0.00113685,3356.1,3355.9,2.489897]
[1642077488403,0.00113685,3356.1,3355.9,2.789897]
[1642077489051,0.00113685,3356.1,3355.9,5.03648693]
[1642077489452,0.00113685,3356.1,3355.9,2.789897]
[1642077490251,0.00113685,3356.1,3355.9,2.044967]
[1642077490649,0.00113685,3356.1,3355.9,4.29155693]
[1642077491452,0.00113685,3356.1,3356.0,2.56154948]
[1642077492291,0.00113685,3356.1,3356.0,3.56154948]
[1642077492497,0.00113685,3356.1,3356.0,2.56154948]
[1642077494497,0.00113685,3356.1,3356.0,2.86154948]
[1642077495602,0.00113685,3356.1,3356.0,5.35902518]
[1642077496252,0.00113685,3356.1,3356.0,4.35902518]
[1642077496452,0.00113685,3356.1,3356.0,3.86154948]
[1642077497455,0.00113685,3356.1,3356.0,5.35953324]
[1642077501200,0.00113685,3356.1,3356.0,3.86154948]
[1642077502701,0.00113685,3356.1,3356.0,2.56154948]
[1642077502902,0.00113685,3356.1,3356.0,2.86154948]
[1642077504254,0.00113685,3356.1,3356.0,5.10813941]
[1642077505056,0.00113685,3356.1,3356.0,2.86154948]
[1642077506759,0.00113685,3356.1,3356.0,2.56154948]
[1642077507608,0.00113685,3356.1,3356.0,4.35938447]
[1642077507809,0.00113685,3356.1,3356.0,2.56154948]
[1642077508209,0.45296088,3356.7,3356.0,2.86154948]
[1642077508410,0.45296088,3356.7,3356.0,3.60648948]
[1642077508611,0.0022737,3356.5,3356.3,0.7449319]
[1642077508814,0.0022737,3356.5,3356.3,2.58138614]
[1642077509012,0.45296088,3356.7,3356.4,1.89664283]
[1642077509211,0.45296088,3356.7,3356.5,2.68271488]
[1642077509412,0.00284212,3356.6,3356.5,2.68271488]
[1642077509621,0.00284212,3356.6,3356.5,3.98271488]
[1642077509812,0.00284212,3356.6,3356.5,6.54426436]
[1642077510914,0.00284212,3356.6,3356.5,8.04294697]
[1642077511363,0.00284212,3356.6,3356.5,8.78781577]
[1642077512165,0.00284212,3356.6,3356.5,7.28913316]
[1642077512862,0.00284212,3356.6,3356.5,8.78781577]
[1642077516917,0.00284212,3356.6,3356.5,9.22637922]
[1642077517118,4.212e-05,3356.6,3356.5,10.34207922]
[1642077517319,3.8598,3358.1,3356.6,6.7]
[1642077517516,3.8598,3358.1,3357.3,0.74449]
[1642077517719,0.00795793,3358.0,3357.6,0.74448]
[1642077518120,0.0073895,3357.9,3357.7,0.3]
[1642077518322,0.9618542,3358.2,3357.8,4.75539505]
[1642077518572,3.8104,3359.1,3357.9,7.44444]
[1642077518752,0.00113685,3358.1,3358.0,8.05]
[1642077518951,0.00625266,3359.0,3358.0,8.05]
[1642077519153,0.00795793,3359.3,3358.0,9.05]
[1642077519356,5.22148424,3359.5,3358.2,6.7]
[1642077519558,5.22148424,3359.5,3358.5,0.74424]
[1642077519759,0.00170527,3359.2,3358.7,0.74427]
[1642077519962,1.53317179,3359.1,3358.7,3.70004524]
[1642077520158,1.53430864,3359.1,3358.7,4.00004524]
[1642077520358,1.53430864,3359.1,3358.9,0.7442699]
[1642077520359,0.00113685,3359.1,3358.9,0.7442699]
[1642077520559,0.00113685,3359.1,3358.9,1.0442699]
[1642077520761,0.00113685,3359.1,3358.7,4.44427434]
[1642077520961,0.00113685,3359.1,3358.8,0.3]
[1642077521258,0.00113685,3359.1,3358.8,1.0]
[1642077521460,0.00113685,3359.1,3358.7,4.74427434]
[1642077521661,0.00113685,3359.1,3358.8,1.0]
[1642077522063,0.00113685,3359.1,3358.7,1.7884991]
[1642077522304,0.00113685,3359.1,3358.6,0.00170527]
[1642077522515,0.00113685,3359.1,3358.8,2.56154948]
[1642077522516,0.03130776,3359.0,3358.8,2.56154948]
[1642077522712,3.9174893,3358.9,3358.8,2.56154948]
[1642077523008,4.2920455,3358.9,3358.8,2.56154948]
[1642077523211,0.3745562,3358.9,3358.8,2.56154948]
[1642077523409,0.0745562,3358.9,3358.8,2.56066947]
[1642077523608,0.0745562,3358.9,3358.7,0.0008]
[1642077524212,0.00113685,3359.1,3358.7,0.0008]
[1642077524413,1.36656777,3358.8,3358.7,0.0008]
[1642077524813,1.36656777,3358.8,3358.7,0.00193685]
[1642077527061,0.3,3358.9,3358.7,0.00193685]
[1642077527259,0.00113685,3359.1,3358.7,0.00193685]
[1642077527560,1.380644,3359.2,3358.7,0.00193685]
[1642077527761,1.380644,3359.2,3358.8,0.00170527]
[1642077527958,2.70302154,3359.2,3358.8,0.00170527]
[1642077530824,2.6,3359.1,3358.7,0.0008]
[1642077531023,2.60170527,3359.1,3358.7,0.0008]
[1642077531224,0.00170527,3359.1,3358.7,0.0008]
[1642077533567,0.00170527,3359.1,3358.8,0.0008]
[1642077541054,0.00170527,3359.1,3358.6,1.56594054]
[1642077541055,4.9992,3358.8,3358.6,1.56594054]
[1642077541453,4.9992,3358.8,3358.6,2.31031014]
[1642077543060,4.9992,3358.8,3358.6,1.56594054]
[1642077543261,4.9992,3358.8,3358.6,0.3]
[1642077545409,4.9992,3358.8,3358.6,2.11105923]
[1642077546413,0.00170527,3359.1,3358.6,1.0]
[1642077546613,0.00170527,3359.1,3358.6,0.74433]
[1642077547215,0.00170527,3359.1,3358.7,3.30428085]
[1642077547415,0.00170527,3359.1,3358.8,0.74422]
[1642077547614,0.00170527,3359.1,3358.8,1.74422]
[1642077547815,0.00170527,3359.1,3358.9,0.74425]
[1642077548219,0.00170527,3359.1,3358.9,1.04425]
[1642077548854,0.00170527,3359.1,3358.9,1.0442749]
[1642077549057,1.17225249,3359.1,3358.8,2.55992405]
[1642077549254,1.17225249,3359.1,3358.8,2.85992405]
[1642077549458,1.17225249,3359.1,3358.7,0.3]
[1642077551262,1.17225249,3359.1,3358.8,0.7443509]
[1642077551464,1.17225249,3359.1,3358.9,0.3]
[1642077552165,0.00170527,3359.1,3358.9,0.3]
[1642077553412,0.00170527,3359.1,3358.7,1.3]
[1642077553612,0.00170527,3359.1,3358.9,0.3]
[1642077556966,0.00170527,3359.1,3359.0,2.55979005]
[1642077557969,1.37187535,3359.0,3358.7,1.7885991]
[1642077558371,0.04147504,3358.9,3358.1,5.32877097]
[1642077558572,1.37301219,3359.0,3358.1,5.32877097]
[1642077558769,1.67301219,3359.0,3358.8,2.55983222]
[1642077559905,0.74451,3358.9,3358.2,2.56324277]
[1642077560107,1.31454404,3358.6,3358.2,2.56324277]
[1642077560308,0.74451,3358.9,3358.3,0.00284212]
[1642077561510,1.67301219,3359.0,3358.3,0.74730092]
[1642077561710,1.37301219,3359.0,3358.3,0.00284212]
[1642077561909,1.37301219,3359.0,3358.5,1.1065548]
[1642077562309,1.37301219,3359.0,3358.6,0.00113685]
[1642077562715,0.00113684,3359.0,3358.6,1.84228823]
[1642077563113,0.00113684,3359.0,3358.6,3.56096907]
[1642077563312,0.00113684,3359.0,3358.6,4.42047827]
[1642077563561,0.00113684,3359.0,3358.6,5.88354265]
[1642077563761,0.00113684,3359.0,3358.7,1.95453672]
[1642077563958,0.00113684,3359.0,3358.7,4.81436894]
[1642077564158,0.00113684,3359.0,3358.8,2.03089244]
[1642077564358,0.00113684,3359.0,3358.7,4.81436894]
[1642077564558,0.00113684,3359.0,3358.8,1.8876789]
[1642077564758,0.00113684,3359.0,3358.8,2.6319766]
[1642077564958,0.00113684,3359.0,3358.9,0.3]
[1642077565560,0.00113684,3359.0,3358.9,1.3]
[1642077565759,0.00113684,3359.0,3358.9,3.85983222]
[1642077566860,0.00113684,3359.0,3358.9,2.85983222]
[1642077575616,0.00113684,3359.0,3358.9,3.85983222]
[1642077575816,0.44134327,3359.8,3358.9,3.85983222]
[1642077575817,0.44134327,3359.8,3359.0,5.55]
[1642077576017,0.44134327,3359.8,3359.3,1.0441]
[1642077576217,0.00397897,3359.7,3359.4,0.74412]
[1642077576617,0.007,3359.9,3359.4,0.74412]
[1642077576618,0.00341054,3359.6,3359.5,1.0441136]
[1642077576920,10.41752532,3360.0,3359.7,0.7441]
[1642077577318,9.96041054,3360.0,3359.8,0.7441]
[1642077577518,9.96041054,3360.0,3359.9,0.3]
[1642077577816,9.96268424,3360.0,3359.9,0.3]
[1642077578218,9.96268424,3360.0,3359.9,2.85983222]
[1642077578656,11.20262909,3360.0,3359.9,2.85983222]
[1642077581563,11.15262909,3360.0,3359.9,2.85983222]
[1642077585311,11.15262909,3360.0,3359.9,2.55983222]
[1642077586762,11.15262909,3360.0,3359.7,2.55983222]
[1642077587166,1.15600774,3359.8,3359.7,2.55983222]
[1642077587563,1.15714459,3359.8,3359.7,2.55983222]
[1642077587964,1.15714459,3359.8,3359.1,5.30413222]
[1642077588163,1.15714459,3359.8,3359.2,0.3]
[1642077588363,1.15714459,3359.8,3359.2,0.30227369]
[1642077588564,1.15714459,3359.8,3359.3,0.00170527]
[1642077588565,1.90145459,3359.8,3359.3,0.00170527]
[1642077589367,1.90145459,3359.8,3359.3,2.55983222]
[1642077589566,1.90145459,3359.8,3359.3,2.56153749]
[1642077589813,1.90145459,3359.8,3359.4,0.00113684]
[1642077591417,1.19236306,3359.4,3359.2,0.00227369]
[1642077596561,0.74543685,3359.8,3359.2,0.00227369]
[1642077596760,0.00113685,3359.8,3359.2,0.00227369]
[1642077596959,0.00113685,3359.8,3359.2,1.30227369]
[1642077597406,0.00113685,3359.8,3359.3,0.00170527]
[1642077598211,0.00113685,3359.8,3359.3,1.49018527]
[1642077598412,0.00113685,3359.8,3359.3,4.35001749]
[1642077598612,0.00113685,3359.8,3359.4,0.00113684]
[1642077599213,1.35760298,3359.6,3359.4,2.56096906]
[1642077600313,0.00113685,3359.8,3359.4,2.56096906]
[1642077600513,0.00113685,3359.8,3359.4,3.30518906]
[1642077600713,9.81154739,3360.0,3359.4,4.04939906]
[1642077600915,9.81154739,3360.0,3359.5,0.3]
[1642077601171,9.81154739,3360.0,3359.5,0.30170527]
[1642077601374,9.81154739,3360.0,3359.6,0.00113685]
[1642077601971,9.81154739,3360.0,3359.5,3.60571749]
[1642077602172,9.81154739,3360.0,3359.6,0.74533685]
[1642077602778,1.22231133,3359.8,3359.6,3.30516907]
[1642077602972,1.22231133,3359.8,3359.6,2.56096907]
[1642077604917,9.81154739,3360.0,3359.6,3.30516907]
[1642077605319,9.81154739,3360.0,3359.7,1.83414043]
[1642077605515,3.0,3359.8,3359.7,1.83414043]
[1642077605716,3.0,3359.8,3359.6,2.56096907]
[1642077606120,3.0,3359.8,3359.6,3.60509907]
[1642077606322,3.0,3359.8,3359.6,1.04526685]
[1642077606720,3.0,3359.8,3359.7,0.74416]
[1642077606921,3.0,3359.8,3359.6,1.04526685]
[1642077607523,3.0,3359.8,3359.6,0.74526685]
[1642077608324,3.0,3359.8,3359.6,0.00113685]
[1642077608773,3.0,3359.8,3359.5,0.00170527]
[1642077609575,3.0,3359.8,3359.5,0.74589527]
[1642077609776,1.43274611,3359.6,3359.5,0.74589527]
[1642077609974,1.43274611,3359.6,3359.3,1.3]
[1642077610275,1.43274611,3359.6,3359.4,0.00227369]
[1642077610676,1.42374611,3359.6,3359.4,0.74647369]
[1642077611079,1.42374611,3359.6,3359.5,0.00170527]
[1642077613923,3.0,3359.8,3359.5,0.00170527]
[1642077614124,3.0,3359.8,3359.6,0.74414]
[1642077615126,4.30817231,3359.8,3359.6,0.74414]
[1642077617578,4.30817231,3359.8,3359.6,1.04414]
[1642077618481,4.30817231,3359.8,3359.6,0.74414]
[1642077618678,4.30817231,3359.8,3359.5,0.00170527]
[1642077619079,1.98311354,3359.7,3359.5,0.00170527]
[1642077619282,7.126,3359.6,3359.5,0.00170527]
[1642077619479,9.126,3359.6,3359.3,0.00284212]
[1642077619678,9.126,3359.6,3359.2,1.50192027]
[1642077619679,6.3445421,3359.5,3359.2,0.00286239]
[1642077619916,0.726,3359.4,3359.2,0.00286239]
[1642077620116,4.73163229,3359.3,3358.9,6.06732631]
[1642077620315,1.27684183,3359.1,3358.9,6.06732631]
[1642077620517,0.426,3359.0,3358.5,3.83988607]
[1642077620819,0.426,3359.0,3358.6,0.00397896]
[1642077621018,0.7445,3358.8,3358.6,0.00397896]
[1642077622417,0.7445,3358.8,3358.3,0.00568423]
[1642077623567,0.7445,3358.8,3358.4,2.55995205]